[Event "Romanian Rapid Open 2022"]
[Site "Sebes"]
[Date "2022.12.02"]
[Round "8.1"]
[White "Stoleriu, George"]
[Black "Gavrilescu, David"]
[Result "1/2-1/2"]
[ECO "B22"]
[WhiteElo "2389"]
[BlackElo "2523"]
[Annotator "TA"]
[PlyCount "26"]
[EventDate "2022.12.02"]
[EventType "rapid"]
[EventCountry "ROU"]
[SourceTitle "playchess.com"]
[Source "ChessBase"]
[SourceQuality "1"]
[TimeControl "600+5"]

{[%evp 10,26,25,20,27,7,0,5,8,-42,-39,-52,-26,-26,22,10,22,29,27]} 1. e4 {[%emt 0:00:01]} e6 {[%emt 0:00:18]} 2. d4 {[%emt 0:00:05]} d5 {[%emt 0:00:02]} 3. exd5 {[%emt 0:00:03]} exd5 {[%emt 0:00:02]} 4. Nf3 {[%emt 0:00:01]} Nf6 {[%emt 0:00:02]} 5. Bd3 {[%emt 0:00:01]} c5 {[%emt 0:00:01]} 6. c3 {[%emt 0:00:16]} c4 {[%emt 0:00:04] B22: Sicilian: 2 c3.} 7. Be2 {[%emt 0:00:17]} Bd6 {[%emt 0:00:04]} 8. O-O {[%emt 0:00:02]} O-O {[%emt 0:00:02] The position is equal.} 9. Nbd2 {[%emt 0:00:07]} ({White should play} 9. b3 $11) 9... Nc6 $15 {[%emt 0:00:02]} 10. Re1 {[%emt 0:00:02] [#]} h6 $146 {[%emt 0:00:19]} ({Predecessor:} 10... Bf5 11. Nf1 h6 12. Ng3 Bh7 13. h3 Bxg3 14. fxg3 Ne4 15. g4 Qd6 16. Be3 Qg3 {0-1 (39) Orlandi Neto,A (1731)-Dianda,J (2117) Florianopolis 2022}) 11. b3 {[%emt 0:00:15]} cxb3 {[%emt 0:00:02]} (11... b5 $1 {feels stronger.}) 12. axb3 $11 {[%emt 0:00:02]} Bf5 {[%emt 0:00:01]} 13. Ba3 {[%emt 0:01:38]} Re8 {[%emt 0:00:12] Weighted Error Value: White=0.10 (very precise) /Black=0.13 (very precise)} 1/2-1/2